[Event "Titled Tuesday Blitz November 22 Early 2022"]
[White "Begunov, Konstantin"]
[Black "Hambleton, Aman"]
[WhiteFideId "4118510"]
[BlackFideId "2606577"]
[WhiteElo "2140"]
[BlackElo "2538"]
[Result "0-1"]
[Round "01"]
[TimeControl "180+1"]
[Date "2022.11.23"]
[WhiteClock "0:00:02"]
[BlackClock "0:00:02"]

1. d4 {[%clk 0:02:59]}  Nf6 {[%clk 0:02:59]} 2. c4 {[%clk 0:02:59]}  e6 {[%clk 0:02:59]} 3. Nf3 {[%clk 0:02:59]}  b6 {[%clk 0:03:00]} 4. g3 {[%clk 0:02:59]}  Ba6 {[%clk 0:02:59]} 5. Qa4 {[%clk 0:02:59]}  Bb7 {[%clk 0:02:58]} 6. Bg2 {[%clk 0:03:00]}  c5 {[%clk 0:02:58]} 7. dxc5 {[%clk 0:03:00]}  Bxc5 {[%clk 0:02:59]} 8. Nc3 {[%clk 0:03:00]}  O-O {[%clk 0:02:59]} 9. O-O {[%clk 0:03:01]}  Be7 {[%clk 0:02:58]} 10. Rd1 {[%clk 0:03:01]}  d6 {[%clk 0:02:53]} 11. Bf4 {[%clk 0:02:57]}  a6 {[%clk 0:02:51]} 12. Qc2 {[%clk 0:02:53]}  Qc7 {[%clk 0:02:47]} 13. b3 {[%clk 0:02:48]}  Rd8 {[%clk 0:02:29]} 14. Rac1 {[%clk 0:02:47]}  Nbd7 {[%clk 0:02:29]} 15. Ng5 {[%clk 0:02:33]}  Bxg2 {[%clk 0:02:26]} 16. Kxg2 {[%clk 0:02:34]}  Qc6+ {[%clk 0:01:42]} 17. f3 {[%clk 0:02:33]}  b5 {[%clk 0:01:34]} 18. Nce4 {[%clk 0:01:54]}  e5 {[%clk 0:00:24]} 19. Be3 {[%clk 0:01:30]}  bxc4 {[%clk 0:00:20]} 20. Nxf6+ {[%clk 0:01:01]}  Nxf6 {[%clk 0:00:19]} 21. Qxc4 {[%clk 0:00:57]}  Qxc4 {[%clk 0:00:18]} 22. Rxc4 {[%clk 0:00:53]}  h6 {[%clk 0:00:13]} 23. Ne4 {[%clk 0:00:47]}  d5 {[%clk 0:00:13]} 24. Nxf6+ {[%clk 0:00:47]}  Bxf6 {[%clk 0:00:14]} 25. Rc7 {[%clk 0:00:45]}  d4 {[%clk 0:00:07]} 26. Bd2 {[%clk 0:00:45]}  a5 {[%clk 0:00:03]} 27. Re1 {[%clk 0:00:44]}  a4 {[%clk 0:00:03]} 28. b4 {[%clk 0:00:43]}  a3 {[%clk 0:00:03]} 29. b5 {[%clk 0:00:38]}  Rdb8 {[%clk 0:00:02]} 30. Rb1 {[%clk 0:00:37]}  Bd8 {[%clk 0:00:03]} 31. Rc5 {[%clk 0:00:36]}  f6 {[%clk 0:00:03]} 32. Rb3 {[%clk 0:00:31]}  Rb7 {[%clk 0:00:03]} 33. Bc1 {[%clk 0:00:29]}  Be7 {[%clk 0:00:03]} 34. Rc6 {[%clk 0:00:27]}  Kf7 {[%clk 0:00:03]} 35. b6 {[%clk 0:00:26]}  Ke8 {[%clk 0:00:02]} 36. Kf2 {[%clk 0:00:16]}  Kd7 {[%clk 0:00:02]} 37. Rc4 {[%clk 0:00:16]}  Ra6 {[%clk 0:00:01]} 38. e3 {[%clk 0:00:13]}  dxe3+ {[%clk 0:00:01]} 39. Bxe3 {[%clk 0:00:13]}  Bd6 {[%clk 0:00:01]} 40. g4 {[%clk 0:00:13]}  Ke6 {[%clk 0:00:01]} 41. Ke2 {[%clk 0:00:12]}  Bf8 {[%clk 0:00:02]} 42. Rc8 {[%clk 0:00:12]}  Be7 {[%clk 0:00:02]} 43. Kd3 {[%clk 0:00:12]}  g6 {[%clk 0:00:02]} 44. h3 {[%clk 0:00:11]}  h5 {[%clk 0:00:02]} 45. gxh5 {[%clk 0:00:11]}  gxh5 {[%clk 0:00:03]} 46. Rh8 {[%clk 0:00:11]}  Ra5 {[%clk 0:00:03]} 47. Ke2 {[%clk 0:00:09]}  Rd5 {[%clk 0:00:04]} 48. Rxh5 {[%clk 0:00:09]}  Bc5 {[%clk 0:00:04]} 49. Rh8 {[%clk 0:00:09]}  Bxe3 {[%clk 0:00:04]} 50. Kxe3 {[%clk 0:00:07]}  Rd6 {[%clk 0:00:04]} 51. Re8+ {[%clk 0:00:07]}  Kf5 {[%clk 0:00:05]} 52. Ra8 {[%clk 0:00:06]}  Rdxb6 {[%clk 0:00:05]} 53. Raxa3 {[%clk 0:00:07]}  Rxb3+ {[%clk 0:00:02]} 54. Rxb3 {[%clk 0:00:07]}  Rh7 {[%clk 0:00:03]} 55. a4 {[%clk 0:00:07]}  Rxh3 {[%clk 0:00:02]} 56. a5 {[%clk 0:00:07]}  Rh7 {[%clk 0:00:01]} 57. a6 {[%clk 0:00:07]}  Ra7 {[%clk 0:00:02]} 58. Rb6 {[%clk 0:00:07]}  Ra8 {[%clk 0:00:02]} 59. Rc6 {[%clk 0:00:05]}  Ra7 {[%clk 0:00:02]} 60. Rb6 {[%clk 0:00:06]}  Ra8 {[%clk 0:00:02]} 61. Rc6 {[%clk 0:00:06]}  Rb8 {[%clk 0:00:02]} 62. Rd6 {[%clk 0:00:03]}  Rb3+ {[%clk 0:00:02]} 63. Ke2 {[%clk 0:00:04]}  Ra3 {[%clk 0:00:03]} 64. Rb6 {[%clk 0:00:04]}  Ra2+ {[%clk 0:00:03]} 65. Ke3 {[%clk 0:00:04]}  Ra3+ {[%clk 0:00:04]} 66. Ke2 {[%clk 0:00:03]}  Kg5 {[%clk 0:00:05]} 67. Rc6 {[%clk 0:00:03]}  Ra5 {[%clk 0:00:04]} 68. Rb6 {[%clk 0:00:03]}  f5 {[%clk 0:00:03]} 69. Re6 {[%clk 0:00:02]}  Kf4 {[%clk 0:00:03]} 70. Kf2 {[%clk 0:00:02]}  Ra2+ {[%clk 0:00:04]} 71. Ke1 {[%clk 0:00:02]}  Ra1+ {[%clk 0:00:03]} 72. Ke2 {[%clk 0:00:02]}  Ra3 {[%clk 0:00:03]} 73. Ke1 {[%clk 0:00:02]}  Ra2 {[%clk 0:00:02]} 0-1


[Site "https://www.chess.com"]

[Event "Titled Tuesday Blitz November 22 Early 2022"]
[White "Bilych, Olexiy"]
[Black "Devaev, Alexander"]
[WhiteFideId "14156504"]
[BlackFideId "4169395"]
[WhiteElo "2320"]
[BlackElo "2225"]
[Result "1/2-1/2"]
[Round "01"]
[TimeControl "180+1"]
[Date "2022.11.23"]
[WhiteClock "0:00:07"]
[BlackClock "0:00:04"]

1. d4 {[%clk 0:03:00]}  Nf6 {[%clk 0:02:55]} 2. c4 {[%clk 0:03:00]}  e6 {[%clk 0:02:55]} 3. Nf3 {[%clk 0:02:59]}  Bb4+ {[%clk 0:02:55]} 4. Bd2 {[%clk 0:02:46]}  Qe7 {[%clk 0:02:51]} 5. g3 {[%clk 0:02:46]}  b6 {[%clk 0:02:49]} 6. Bg2 {[%clk 0:02:46]}  Bb7 {[%clk 0:02:50]} 7. O-O {[%clk 0:02:45]}  Bxd2 {[%clk 0:02:48]} 8. Qxd2 {[%clk 0:02:44]}  d6 {[%clk 0:02:44]} 9. Nc3 {[%clk 0:02:42]}  Ne4 {[%clk 0:02:43]} 10. Qc2 {[%clk 0:02:31]}  Nxc3 {[%clk 0:02:40]} 11. Qxc3 {[%clk 0:02:31]}  Nd7 {[%clk 0:02:41]} 12. Rac1 {[%clk 0:02:28]}  O-O {[%clk 0:02:40]} 13. b4 {[%clk 0:02:25]}  h6 {[%clk 0:02:07]} 14. c5 {[%clk 0:02:17]}  Bd5 {[%clk 0:01:58]} 15. Qc2 {[%clk 0:02:07]}  Nf6 {[%clk 0:01:57]} 16. Nd2 {[%clk 0:01:54]}  Bxg2 {[%clk 0:01:52]} 17. Kxg2 {[%clk 0:01:55]}  d5 {[%clk 0:01:33]} 18. Nf3 {[%clk 0:01:50]}  Nd7 {[%clk 0:01:21]} 19. e4 {[%clk 0:01:42]}  bxc5 {[%clk 0:01:10]} 20. bxc5 {[%clk 0:01:32]}  c6 {[%clk 0:01:00]} 21. e5 {[%clk 0:01:21]}  f6 {[%clk 0:00:51]} 22. Rfe1 {[%clk 0:01:17]}  f5 {[%clk 0:00:49]} 23. Rb1 {[%clk 0:01:12]}  Rfb8 {[%clk 0:00:43]} 24. Qa4 {[%clk 0:01:11]}  Rxb1 {[%clk 0:00:24]} 25. Rxb1 {[%clk 0:01:12]}  Rb8 {[%clk 0:00:25]} 26. Rb3 {[%clk 0:01:00]}  Rxb3 {[%clk 0:00:23]} 27. axb3 {[%clk 0:01:01]}  Nb8 {[%clk 0:00:23]} 28. Qa5 {[%clk 0:00:50]}  Kf7 {[%clk 0:00:18]} 29. Ne1 {[%clk 0:00:46]}  Qd7 {[%clk 0:00:17]} 30. Nd3 {[%clk 0:00:45]}  Ke7 {[%clk 0:00:18]} 31. h4 {[%clk 0:00:40]}  Qb7 {[%clk 0:00:18]} 32. Nb4 {[%clk 0:00:37]}  g6 {[%clk 0:00:13]} 33. Qa4 {[%clk 0:00:31]}  a6 {[%clk 0:00:11]} 34. Qa5 {[%clk 0:00:29]}  Kd7 {[%clk 0:00:11]} 35. f4 {[%clk 0:00:27]}  Qb5 {[%clk 0:00:09]} 36. Qxb5 {[%clk 0:00:25]}  cxb5 {[%clk 0:00:09]} 37. h5 {[%clk 0:00:19]}  gxh5 {[%clk 0:00:09]} 38. Kh3 {[%clk 0:00:19]}  a5 {[%clk 0:00:09]} 39. Nc2 {[%clk 0:00:17]}  Nc6 {[%clk 0:00:09]} 40. Kh4 {[%clk 0:00:15]}  a4 {[%clk 0:00:10]} 41. bxa4 {[%clk 0:00:16]}  bxa4 {[%clk 0:00:11]} 42. Kxh5 {[%clk 0:00:15]}  Ke7 {[%clk 0:00:05]} 43. Kxh6 {[%clk 0:00:15]}  Kf7 {[%clk 0:00:05]} 44. Kg5 {[%clk 0:00:16]}  Ne7 {[%clk 0:00:06]} 45. g4 {[%clk 0:00:16]}  fxg4 {[%clk 0:00:06]} 46. Kxg4 {[%clk 0:00:17]}  Nf5 {[%clk 0:00:06]} 47. Kf3 {[%clk 0:00:16]}  Ne7 {[%clk 0:00:06]} 48. Ke3 {[%clk 0:00:16]}  Nc6 {[%clk 0:00:07]} 49. Kd3 {[%clk 0:00:16]}  Kg6 {[%clk 0:00:08]} 50. Ne3 {[%clk 0:00:15]}  a3 {[%clk 0:00:06]} 51. Kc3 {[%clk 0:00:15]}  a2 {[%clk 0:00:06]} 52. Kb2 {[%clk 0:00:15]}  Nxd4 {[%clk 0:00:07]} 53. Kxa2 {[%clk 0:00:15]}  Nc6 {[%clk 0:00:07]} 54. Kb3 {[%clk 0:00:15]}  d4 {[%clk 0:00:08]} 55. Nc2 {[%clk 0:00:09]}  Kf5 {[%clk 0:00:08]} 56. Kc4 {[%clk 0:00:09]}  Kxf4 {[%clk 0:00:08]} 57. Nxd4 {[%clk 0:00:09]}  Nxe5+ {[%clk 0:00:09]} 58. Kb5 {[%clk 0:00:10]}  Ke4 {[%clk 0:00:04]} 59. Nxe6 {[%clk 0:00:10]}  Kd5 {[%clk 0:00:05]} 60. Nf4+ {[%clk 0:00:10]}  Kd4 {[%clk 0:00:05]} 61. Ne6+ {[%clk 0:00:10]}  Kd5 {[%clk 0:00:05]} 62. Nc7+ {[%clk 0:00:10]}  Kd4 {[%clk 0:00:04]} 63. Na6 {[%clk 0:00:10]}  Kd5 {[%clk 0:00:04]} 64. Nb4+ {[%clk 0:00:11]}  Ke6 {[%clk 0:00:04]} 65. Ka6 {[%clk 0:00:09]}  Kd7 {[%clk 0:00:03]} 66. Kb7 {[%clk 0:00:09]}  Ke6 {[%clk 0:00:03]} 67. Nc2 {[%clk 0:00:07]}  Kd5 {[%clk 0:00:03]} 68. Kb6 {[%clk 0:00:06]}  Nd7+ {[%clk 0:00:03]} 69. Kb5 {[%clk 0:00:07]}  Nxc5 {[%clk 0:00:04]} 1/2-1/2


[Site "https://www.chess.com"]

[Event "Titled Tuesday Blitz November 22 Early 2022"]
[White "Bon, Michael"]
[Black "Sharifov, Mekhriddin"]
[WhiteFideId "620696"]
[BlackFideId "14701545"]
[WhiteElo "2321"]
[BlackElo "2109"]
[Result "0-1"]
[Round "01"]
[TimeControl "180+1"]
[Date "2022.11.23"]
[WhiteClock "0:00:14"]
[BlackClock "0:01:48"]

1. e4 {[%clk 0:03:00]}  c5 {[%clk 0:03:00]} 2. Nf3 {[%clk 0:02:56]}  a6 {[%clk 0:03:00]} 3. c4 {[%clk 0:02:52]}  Nc6 {[%clk 0:03:00]} 4. Nc3 {[%clk 0:02:51]}  d6 {[%clk 0:02:59]} 5. d4 {[%clk 0:02:51]}  cxd4 {[%clk 0:02:59]} 6. Nxd4 {[%clk 0:02:52]}  Nf6 {[%clk 0:03:00]} 7. Be2 {[%clk 0:02:49]}  e6 {[%clk 0:03:00]} 8. Be3 {[%clk 0:02:49]}  Be7 {[%clk 0:03:00]} 9. O-O {[%clk 0:02:48]}  O-O {[%clk 0:03:01]} 10. Qb3 {[%clk 0:02:31]}  Qc7 {[%clk 0:02:56]} 11. Rfc1 {[%clk 0:02:04]}  Bd7 {[%clk 0:02:54]} 12. Qd1 {[%clk 0:01:59]}  Rac8 {[%clk 0:02:49]} 13. a3 {[%clk 0:01:42]}  Rfd8 {[%clk 0:02:48]} 14. b4 {[%clk 0:01:25]}  Qb8 {[%clk 0:02:48]} 15. Nb3 {[%clk 0:01:20]}  Ne5 {[%clk 0:02:46]} 16. Bb6 {[%clk 0:01:13]}  Re8 {[%clk 0:02:43]} 17. Nd2 {[%clk 0:01:00]}  Ng6 {[%clk 0:02:30]} 18. a4 {[%clk 0:00:51]}  d5 {[%clk 0:02:24]} 19. c5 {[%clk 0:00:41]}  d4 {[%clk 0:02:20]} 20. Ncb1 {[%clk 0:00:35]}  Qe5 {[%clk 0:02:01]} 21. Bd3 {[%clk 0:00:32]}  Nf4 {[%clk 0:02:00]} 22. Nf3 {[%clk 0:00:31]}  Qh5 {[%clk 0:02:00]} 23. g3 {[%clk 0:00:20]}  Nxd3 {[%clk 0:01:48]} 24. Qxd3 {[%clk 0:00:19]}  Nxe4 {[%clk 0:01:49]} 25. Qxe4 {[%clk 0:00:15]}  Bc6 {[%clk 0:01:49]} 26. Qxd4 {[%clk 0:00:14]}  Qxf3 {[%clk 0:01:48]} 0-1


[Site "https://www.chess.com"]

[Event "Titled Tuesday Blitz November 22 Early 2022"]
[White "Boros, Denes"]
[Black "Szyszylo, Rafal"]
[WhiteFideId "722340"]
[BlackFideId "1109626"]
[WhiteElo "2464"]
[BlackElo "1981"]
[Result "1-0"]
[Round "01"]
[TimeControl "180+1"]
[Date "2022.11.23"]
[WhiteClock "0:00:48"]
[BlackClock "0:00:02"]

1. d4 {[%clk 0:03:00]}  d6 {[%clk 0:02:58]} 2. Bg5 {[%clk 0:02:58]}  g6 {[%clk 0:02:57]} 3. e4 {[%clk 0:02:58]}  Bg7 {[%clk 0:02:57]} 4. c3 {[%clk 0:02:58]}  Nf6 {[%clk 0:02:56]} 5. Nd2 {[%clk 0:02:58]}  e5 {[%clk 0:02:54]} 6. Bd3 {[%clk 0:02:55]}  O-O {[%clk 0:02:52]} 7. Ne2 {[%clk 0:02:54]}  h6 {[%clk 0:02:52]} 8. Bh4 {[%clk 0:02:54]}  Nc6 {[%clk 0:02:51]} 9. O-O {[%clk 0:02:53]}  a6 {[%clk 0:02:49]} 10. Kh1 {[%clk 0:02:53]}  Qe8 {[%clk 0:02:48]} 11. f4 {[%clk 0:02:45]}  Ng4 {[%clk 0:02:34]} 12. f5 {[%clk 0:02:35]}  Ne3 {[%clk 0:02:32]} 13. Qe1 {[%clk 0:02:35]}  Nxf1 {[%clk 0:02:32]} 14. Qxf1 {[%clk 0:02:33]}  gxf5 {[%clk 0:01:52]} 15. exf5 {[%clk 0:02:29]}  f6 {[%clk 0:01:45]} 16. Ng3 {[%clk 0:02:17]}  exd4 {[%clk 0:01:37]} 17. cxd4 {[%clk 0:02:05]}  Nxd4 {[%clk 0:01:34]} 18. Qf4 {[%clk 0:01:51]}  Nc6 {[%clk 0:01:28]} 19. Be2 {[%clk 0:01:39]}  Qe5 {[%clk 0:01:18]} 20. Qg4 {[%clk 0:01:25]}  Qd4 {[%clk 0:01:18]} 21. Nde4 {[%clk 0:01:19]}  Ne5 {[%clk 0:01:16]} 22. Qf4 {[%clk 0:01:15]}  Qxb2 {[%clk 0:01:12]} 23. Rf1 {[%clk 0:01:09]}  d5 {[%clk 0:01:10]} 24. Nc5 {[%clk 0:01:01]}  b6 {[%clk 0:00:09]} 25. Ne6 {[%clk 0:01:00]}  Rf7 {[%clk 0:00:07]} 26. Nxg7 {[%clk 0:00:52]}  Rxg7 {[%clk 0:00:06]} 27. Bxf6 {[%clk 0:00:50]}  Qxa2 {[%clk 0:00:02]} 28. Qxh6 {[%clk 0:00:48]} 1-0


[Site "https://www.chess.com"]

[Event "Titled Tuesday Blitz November 22 Early 2022"]
[White "Cardoso Cardoso, Jose Gabriel"]
[Black "Skibbe, Willi"]
[WhiteFideId "4430492"]
[BlackFideId "4682190"]
[WhiteElo "2484"]
[BlackElo "2366"]
[Result "1-0"]
[Round "01"]
[TimeControl "180+1"]
[Date "2022.11.23"]
[WhiteClock "0:00:01"]
[BlackClock "0:00:01"]

1. d4 {[%clk 0:02:59]}  d5 {[%clk 0:02:59]} 2. Nc3 {[%clk 0:02:59]}  Nf6 {[%clk 0:02:56]} 3. Bf4 {[%clk 0:02:58]}  a6 {[%clk 0:02:52]} 4. e3 {[%clk 0:02:58]}  b5 {[%clk 0:02:46]} 5. Nf3 {[%clk 0:02:51]}  e6 {[%clk 0:02:43]} 6. Ne5 {[%clk 0:02:43]}  c5 {[%clk 0:02:38]} 7. g4 {[%clk 0:02:40]}  Nfd7 {[%clk 0:02:30]} 8. Bd3 {[%clk 0:02:25]}  Nxe5 {[%clk 0:02:26]} 9. Bxe5 {[%clk 0:02:23]}  Nc6 {[%clk 0:02:21]} 10. Qf3 {[%clk 0:02:10]}  Nxe5 {[%clk 0:02:10]} 11. dxe5 {[%clk 0:02:10]}  Bb7 {[%clk 0:02:06]} 12. O-O-O {[%clk 0:02:00]}  Qc7 {[%clk 0:02:05]} 13. Qf4 {[%clk 0:01:55]}  f6 {[%clk 0:01:37]} 14. exf6 {[%clk 0:01:18]}  Qxf4 {[%clk 0:01:38]} 15. exf4 {[%clk 0:01:12]}  gxf6 {[%clk 0:01:36]} 16. Rhe1 {[%clk 0:01:11]}  Kf7 {[%clk 0:01:34]} 17. h4 {[%clk 0:00:50]}  Bd6 {[%clk 0:01:30]} 18. f5 {[%clk 0:00:49]}  Bf4+ {[%clk 0:01:09]} 19. Kb1 {[%clk 0:00:48]}  e5 {[%clk 0:01:09]} 20. Be4 {[%clk 0:00:45]}  Rad8 {[%clk 0:00:23]} 21. Bxd5+ {[%clk 0:00:40]}  Bxd5 {[%clk 0:00:23]} 22. Nxd5 {[%clk 0:00:41]}  Rhg8 {[%clk 0:00:20]} 23. f3 {[%clk 0:00:23]}  h5 {[%clk 0:00:16]} 24. Rg1 {[%clk 0:00:12]}  hxg4 {[%clk 0:00:14]} 25. fxg4 {[%clk 0:00:13]}  Rh8 {[%clk 0:00:13]} 26. g5 {[%clk 0:00:12]}  Rxh4 {[%clk 0:00:12]} 27. g6+ {[%clk 0:00:12]}  Kg7 {[%clk 0:00:11]} 28. Nxf4 {[%clk 0:00:11]}  Rxd1+ {[%clk 0:00:10]} 29. Rxd1 {[%clk 0:00:08]}  Rxf4 {[%clk 0:00:11]} 30. Rd7+ {[%clk 0:00:06]}  Kg8 {[%clk 0:00:11]} 31. b3 {[%clk 0:00:04]}  Rxf5 {[%clk 0:00:11]} 32. Rd6 {[%clk 0:00:04]}  e4 {[%clk 0:00:11]} 33. Rxa6 {[%clk 0:00:04]}  e3 {[%clk 0:00:11]} 34. Re6 {[%clk 0:00:03]}  Rf3 {[%clk 0:00:10]} 35. a4 {[%clk 0:00:03]}  bxa4 {[%clk 0:00:10]} 36. bxa4 {[%clk 0:00:04]}  Rf4 {[%clk 0:00:10]} 37. Rxe3 {[%clk 0:00:03]}  Rxa4 {[%clk 0:00:10]} 38. Re7 {[%clk 0:00:04]}  Rg4 {[%clk 0:00:09]} 39. Rc7 {[%clk 0:00:04]}  Rxg6 {[%clk 0:00:09]} 40. Rxc5 {[%clk 0:00:05]}  Rg5 {[%clk 0:00:10]} 41. Rc6 {[%clk 0:00:05]}  Kf7 {[%clk 0:00:10]} 42. Kb2 {[%clk 0:00:05]}  Rb5+ {[%clk 0:00:10]} 43. Kc3 {[%clk 0:00:06]}  f5 {[%clk 0:00:11]} 44. Kc4 {[%clk 0:00:06]}  Rb2 {[%clk 0:00:11]} 45. Kd3 {[%clk 0:00:06]}  f4 {[%clk 0:00:10]} 46. Ke4 {[%clk 0:00:06]}  Rb4+ {[%clk 0:00:11]} 47. c4 {[%clk 0:00:06]}  Ke7 {[%clk 0:00:10]} 48. Kd4 {[%clk 0:00:03]}  f3 {[%clk 0:00:10]} 49. Rc5 {[%clk 0:00:03]}  Ke6 {[%clk 0:00:09]} 50. Re5+ {[%clk 0:00:03]}  Kf6 {[%clk 0:00:08]} 51. Re3 {[%clk 0:00:03]}  Rb1 {[%clk 0:00:06]} 52. Rxf3+ {[%clk 0:00:03]}  Ke6 {[%clk 0:00:07]} 53. Kc5 {[%clk 0:00:03]}  Kd7 {[%clk 0:00:07]} 54. Rf7+ {[%clk 0:00:04]}  Kc8 {[%clk 0:00:07]} 55. Kc6 {[%clk 0:00:04]}  Kd8 {[%clk 0:00:04]} 56. c5 {[%clk 0:00:04]}  Rh1 {[%clk 0:00:02]} 57. Rf8+ {[%clk 0:00:04]}  Ke7 {[%clk 0:00:02]} 58. Rc8 {[%clk 0:00:03]}  Rb1 {[%clk 0:00:02]} 59. Kc7 {[%clk 0:00:03]}  Rb5 {[%clk 0:00:01]} 60. c6 {[%clk 0:00:03]}  Rb1 {[%clk 0:00:02]} 61. Rb8 {[%clk 0:00:02]}  Rc1 {[%clk 0:00:02]} 62. Rb2 {[%clk 0:00:02]}  Re1 {[%clk 0:00:01]} 63. Rd2 {[%clk 0:00:01]} 1-0


[Site "https://www.chess.com"]

[Event "Titled Tuesday Blitz November 22 Early 2022"]
[White "Chigaev, Maksim"]
[Black "Stankovic, Ivan G"]
[WhiteFideId "4108116"]
[BlackFideId "902837"]
[WhiteElo "2541"]
[BlackElo "2226"]
[Result "1/2-1/2"]
[Round "01"]
[TimeControl "180+1"]
[Date "2022.11.22"]
[WhiteClock "0:00:15"]
[BlackClock "0:00:36"]

1. Nf3 {[%clk 0:02:59]}  c5 {[%clk 0:02:47]} 2. e4 {[%clk 0:02:57]}  Nc6 {[%clk 0:02:47]} 3. Bb5 {[%clk 0:02:57]}  g6 {[%clk 0:02:43]} 4. O-O {[%clk 0:02:57]}  Bg7 {[%clk 0:02:42]} 5. Re1 {[%clk 0:02:57]}  Nh6 {[%clk 0:02:37]} 6. c3 {[%clk 0:02:57]}  O-O {[%clk 0:02:37]} 7. Bxc6 {[%clk 0:02:46]}  bxc6 {[%clk 0:02:36]} 8. h3 {[%clk 0:02:47]}  f5 {[%clk 0:02:34]} 9. e5 {[%clk 0:02:47]}  Nf7 {[%clk 0:02:33]} 10. d3 {[%clk 0:02:46]}  e6 {[%clk 0:02:25]} 11. Na3 {[%clk 0:02:14]}  g5 {[%clk 0:02:20]} 12. Nc4 {[%clk 0:02:11]}  Ba6 {[%clk 0:02:14]} 13. Nd6 {[%clk 0:02:11]}  h6 {[%clk 0:02:06]} 14. Nxf7 {[%clk 0:02:07]}  Rxf7 {[%clk 0:02:06]} 15. c4 {[%clk 0:02:07]}  d5 {[%clk 0:01:41]} 16. exd6 {[%clk 0:01:58]}  Qxd6 {[%clk 0:01:40]} 17. Qe2 {[%clk 0:01:58]}  Re8 {[%clk 0:01:32]} 18. Ne5 {[%clk 0:01:53]}  Bxe5 {[%clk 0:01:28]} 19. Qxe5 {[%clk 0:01:54]}  Qxd3 {[%clk 0:01:29]} 20. b3 {[%clk 0:01:52]}  Qd4 {[%clk 0:01:26]} 21. Ba3 {[%clk 0:01:45]}  Qxe5 {[%clk 0:01:23]} 22. Rxe5 {[%clk 0:01:46]}  Rd7 {[%clk 0:01:22]} 23. Bxc5 {[%clk 0:01:46]}  Kf7 {[%clk 0:01:20]} 24. Rae1 {[%clk 0:01:45]}  Rd2 {[%clk 0:01:18]} 25. R5e2 {[%clk 0:01:29]}  Rd7 {[%clk 0:01:10]} 26. g3 {[%clk 0:01:25]}  Bc8 {[%clk 0:01:10]} 27. f4 {[%clk 0:01:22]}  a6 {[%clk 0:01:05]} 28. Kf2 {[%clk 0:01:22]}  Rd3 {[%clk 0:01:03]} 29. Re3 {[%clk 0:01:22]}  Red8 {[%clk 0:01:02]} 30. Rxd3 {[%clk 0:01:09]}  Rxd3 {[%clk 0:01:01]} 31. Re3 {[%clk 0:01:09]}  Rd2+ {[%clk 0:01:00]} 32. Re2 {[%clk 0:01:09]}  Rd3 {[%clk 0:01:01]} 33. h4 {[%clk 0:00:58]}  g4 {[%clk 0:01:00]} 34. Be3 {[%clk 0:00:42]}  Ke7 {[%clk 0:00:57]} 35. Rd2 {[%clk 0:00:32]}  Rxd2+ {[%clk 0:00:57]} 36. Bxd2 {[%clk 0:00:33]}  c5 {[%clk 0:00:58]} 37. Ke3 {[%clk 0:00:26]}  Kd6 {[%clk 0:00:56]} 38. Bc3 {[%clk 0:00:26]}  h5 {[%clk 0:00:55]} 39. Kd2 {[%clk 0:00:24]}  Bb7 {[%clk 0:00:52]} 40. Kc2 {[%clk 0:00:25]}  Be4+ {[%clk 0:00:52]} 41. Kb2 {[%clk 0:00:26]}  Kc6 {[%clk 0:00:52]} 42. Ba5 {[%clk 0:00:27]}  Kd6 {[%clk 0:00:51]} 43. Kc3 {[%clk 0:00:25]}  e5 {[%clk 0:00:46]} 44. fxe5+ {[%clk 0:00:26]}  Kxe5 {[%clk 0:00:47]} 45. Bc7+ {[%clk 0:00:26]}  Ke6 {[%clk 0:00:47]} 46. a3 {[%clk 0:00:21]}  Kd7 {[%clk 0:00:47]} 47. Bb8 {[%clk 0:00:21]}  Kc6 {[%clk 0:00:47]} 48. b4 {[%clk 0:00:20]}  cxb4+ {[%clk 0:00:47]} 49. axb4 {[%clk 0:00:20]}  Bb1 {[%clk 0:00:47]} 50. Bf4 {[%clk 0:00:20]}  Ba2 {[%clk 0:00:46]} 51. Kd4 {[%clk 0:00:20]}  Bb3 {[%clk 0:00:45]} 52. Ke5 {[%clk 0:00:13]}  Bxc4 {[%clk 0:00:44]} 53. Kf6 {[%clk 0:00:14]}  Kb5 {[%clk 0:00:43]} 54. Kg5 {[%clk 0:00:14]}  Bf7 {[%clk 0:00:39]} 55. Bd2 {[%clk 0:00:14]}  Kc4 {[%clk 0:00:36]} 56. Kxf5 {[%clk 0:00:14]}  Kd3 {[%clk 0:00:36]} 57. Be1 {[%clk 0:00:14]}  Ke2 {[%clk 0:00:36]} 58. Bc3 {[%clk 0:00:15]}  Kf3 {[%clk 0:00:36]} 59. Be5 {[%clk 0:00:15]}  Be8 {[%clk 0:00:36]} 60. Kf6 {[%clk 0:00:15]}  Bb5 {[%clk 0:00:36]} 61. Bf4 {[%clk 0:00:14]}  Be8 {[%clk 0:00:36]} 62. Ke7 {[%clk 0:00:14]}  Bb5 {[%clk 0:00:37]} 63. Kf7 {[%clk 0:00:15]}  Ke4 {[%clk 0:00:36]} 64. Kg6 {[%clk 0:00:14]}  Be8+ {[%clk 0:00:36]} 65. Kg5 {[%clk 0:00:15]}  Kd5 {[%clk 0:00:36]} 1/2-1/2


[Site "https://www.chess.com"]

[Event "Titled Tuesday Blitz November 22 Early 2022"]
[White "Colas, Joshua"]
[Black "Manon-og, Ramon Jr."]
[WhiteFideId "2044447"]
[BlackFideId "5200776"]
[WhiteElo "2347"]
[BlackElo "2322"]
[Result "1-0"]
[Round "01"]
[TimeControl "180+1"]
[Date "2022.11.23"]
[WhiteClock "0:00:51"]
[BlackClock "0:00:04"]

1. Nf3 {[%clk 0:02:52]}  Nf6 {[%clk 0:02:59]} 2. c4 {[%clk 0:02:52]}  g6 {[%clk 0:03:00]} 3. b3 {[%clk 0:02:52]}  Bg7 {[%clk 0:03:00]} 4. Bb2 {[%clk 0:02:53]}  O-O {[%clk 0:03:00]} 5. g3 {[%clk 0:02:53]}  c6 {[%clk 0:03:00]} 6. Bg2 {[%clk 0:02:53]}  d5 {[%clk 0:03:01]} 7. O-O {[%clk 0:02:54]}  Nbd7 {[%clk 0:02:59]} 8. d4 {[%clk 0:02:54]}  dxc4 {[%clk 0:02:58]} 9. bxc4 {[%clk 0:02:53]}  Nb6 {[%clk 0:02:58]} 10. Nbd2 {[%clk 0:02:50]}  Be6 {[%clk 0:02:51]} 11. Qc2 {[%clk 0:02:43]}  Qd7 {[%clk 0:02:49]} 12. Ng5 {[%clk 0:02:41]}  Bf5 {[%clk 0:02:49]} 13. e4 {[%clk 0:02:41]}  Bg4 {[%clk 0:02:49]} 14. f3 {[%clk 0:02:41]}  h6 {[%clk 0:02:49]} 15. Nxf7 {[%clk 0:02:26]}  Rxf7 {[%clk 0:02:49]} 16. fxg4 {[%clk 0:02:26]}  Nxg4 {[%clk 0:02:37]} 17. Rxf7 {[%clk 0:02:27]}  Kxf7 {[%clk 0:02:37]} 18. c5 {[%clk 0:02:27]}  Bxd4+ {[%clk 0:02:28]} 19. Kh1 {[%clk 0:02:15]}  Nf2+ {[%clk 0:02:18]} 20. Kg1 {[%clk 0:02:13]}  Nd3+ {[%clk 0:02:11]} 21. Kh1 {[%clk 0:02:08]}  Bxb2 {[%clk 0:02:10]} 22. Rf1+ {[%clk 0:02:06]}  Kg7 {[%clk 0:02:10]} 23. cxb6 {[%clk 0:02:02]}  axb6 {[%clk 0:02:10]} 24. Nc4 {[%clk 0:01:57]}  Qd4 {[%clk 0:01:47]} 25. h3 {[%clk 0:01:26]}  b5 {[%clk 0:01:37]} 26. Nxb2 {[%clk 0:01:18]}  Nxb2 {[%clk 0:01:38]} 27. e5 {[%clk 0:01:02]}  Qxe5 {[%clk 0:01:03]} 28. Qf2 {[%clk 0:01:02]}  Qf6 {[%clk 0:00:35]} 29. Qe2 {[%clk 0:01:02]}  Qd4 {[%clk 0:00:18]} 30. Qxe7+ {[%clk 0:01:02]}  Kh8 {[%clk 0:00:18]} 31. Rf7 {[%clk 0:00:59]}  Kg8 {[%clk 0:00:04]} 32. Qe6 {[%clk 0:00:51]} 1-0


[Site "https://www.chess.com"]